bitfinex/quotes_SOLUSD_20240814
["timestamp","ask_amount","ask_price","bid_price","bid_amount"]
[1723640940634,42.56,150.07,149.99,0.8516359]
[1723640940834,42.56,150.04,149.99,0.8516359]
[1723640941040,0.12549,150.06,149.99,0.8516359]
[1723640941041,42.56,150.0,149.99,0.8516359]
[1723640941452,49.35209,150.0,149.94,6.1007]
[1723640941753,42.56,149.97,149.9,6.5817]
[1723640942048,42.93647,149.99,149.9,6.0817]
[1723640942226,42.81098,149.99,149.9,6.0817]
[1723640942751,42.56,149.99,149.9,6.0817]
[1723640942953,42.56,150.01,149.9,6.0817]
[1723640943758,42.56,150.01,149.91,0.12549]
[1723640943950,42.56,150.01,149.91,0.25098]
[1723640944146,42.56,150.03,149.92,0.12549]
[1723640944454,42.56,150.03,149.93,0.12549]
[1723640944768,42.56,150.03,149.93,0.25098]
[1723640945137,42.56,150.03,149.92,0.12549]
[1723640945138,42.56,150.01,149.92,0.12549]
[1723640945470,42.56,149.99,149.91,20.0]
[1723640945640,42.56,150.01,149.91,20.0]
[1723640946567,0.12549,149.91,149.84,0.8516359]
[1723640946768,42.56,149.88,149.84,0.8516359]
[1723640947477,42.56,149.91,149.84,0.8516359]
[1723640947636,42.56,149.88,149.84,0.8516359]
[1723640947841,42.56,149.85,149.84,0.8516359]
[1723640949766,42.81098,149.85,149.84,0.8516359]
[1723640949970,42.56,149.87,149.84,0.8516359]
[1723640950973,42.56,149.91,149.84,0.8516359]
[1723640951346,6.93352034,149.9,149.84,0.8516359]
[1723640951546,42.56,149.86,149.69,17.1395359]
[1723640951744,42.56,149.82,149.69,17.1395359]
[1723640952861,49.2347,149.82,149.69,17.1395359]
[1723640953071,42.56,149.8,149.69,17.1395359]
[1723640953652,42.56,149.75,149.69,0.8516359]
[1723640953985,42.56,149.71,149.69,0.0096494]
[1723640954359,42.56,149.73,149.69,0.0096494]
[1723640954680,42.68549,149.75,149.69,0.0096494]
[1723640954860,42.56,149.75,149.69,0.0096494]
[1723640955047,42.56,149.78,149.69,0.0096494]
[1723640955253,0.12549,149.79,149.69,0.0096494]
[1723640955478,15.9303,149.82,149.69,0.0096494]
[1723640955479,42.56,149.82,149.69,6.1576494]
[1723640955862,42.56,149.82,149.7,21.33545539]
[1723640956055,42.56,149.82,149.71,0.12549]
[1723640956257,42.56,149.82,149.71,45.50196]
[1723640956460,42.56,149.82,149.73,0.12549]
[1723640956659,42.56,149.82,149.72,20.0]
[1723640956865,42.56,149.79,149.72,20.0]
[1723640957076,42.56,149.79,149.7,20.0]
[1723640958160,42.56,149.79,149.71,45.0]
[1723640958367,42.56,149.79,149.72,20.0]
[1723640959257,6.94148926,149.81,149.73,45.0]
[1723640959480,42.56,149.84,149.74,20.0]
[1723640959681,42.56,149.84,149.75,45.0]
[1723640959891,16.3594,149.89,149.75,45.0]
[1723640959892,42.56,149.86,149.76,0.12549]
[1723640960056,19.3763309,149.94,149.76,0.12549]
[1723640960057,15.1193,149.96,149.76,0.12549]
[1723640960257,42.56,149.9,149.76,20.50196]
[1723640960460,42.56,149.9,149.78,0.12549]
[1723640960657,42.56,149.9,149.78,20.50196]
[1723640960860,42.56,149.93,149.81,6.2392]
[1723640961069,42.56,149.93,149.82,65.0]
[1723640961483,42.56,149.9,149.82,65.0]
[1723640963069,42.56,149.92,149.82,65.0]
[1723640963070,42.56,149.87,149.82,20.0]
[1723640963378,42.56,149.87,149.81,6.2392]
[1723640964385,42.56,149.9,149.81,6.2392]
[1723640964898,42.56,149.9,149.82,45.0]
[1723640965193,42.56,149.94,149.83,20.0]
[1723640965357,42.56,149.94,149.84,45.0]
[1723640965563,6.92830345,149.93,149.84,45.0]
[1723640967192,42.56,149.94,149.84,45.0]
[1723640967359,42.56,149.92,149.85,20.0]
[1723640967785,42.56,149.91,149.85,18.8393]
[1723640968269,6.9226333,149.94,149.81,6.2392]
[1723640968270,42.56,149.89,149.81,6.2392]
[1723640969266,42.56,149.87,149.81,6.2392]
[1723640969488,42.56,149.85,149.81,6.2392]
[1723640970071,42.56,149.82,149.74,6.6506]
[1723640970487,6.79749,149.88,149.74,6.6506]
[1723640970488,42.56,149.85,149.74,6.6506]
[1723640971777,42.56,149.87,149.76,0.12549]
[1723640972002,0.12549,149.88,149.68,9.23025824]
[1723640972003,42.56,149.8,149.68,9.23025824]
[1723640972170,42.56,149.84,149.68,6.6506]
[1723640972171,42.56,149.77,149.68,6.6506]
[1723640973870,42.56,149.8,149.69,45.50196]
[1723640974094,42.56,149.8,149.69,45.25098]
[1723640974770,42.56,149.8,149.69,45.12549]
[1723640974967,0.12549,149.82,149.7,0.12549]
[1723640975183,42.56,149.81,149.7,20.12549]
[1723640975506,42.56,149.81,149.71,45.0]
[1723640977086,49.2351,149.81,149.71,45.0]
[1723640977499,42.56,149.81,149.71,45.0]
[1723640977875,42.56,149.84,149.71,45.0]
[1723640977876,42.56,149.84,149.72,0.12549]
[1723640978179,42.56,149.84,149.72,20.37647]
[1723640978521,42.56,149.84,149.74,0.12549]
[1723640978677,42.56,149.84,149.74,36.63137]
[1723640979001,42.56,149.84,149.75,45.12549]
[1723640979198,42.56,149.84,149.75,45.0]
[1723640979897,42.56,149.86,149.75,45.0]
[1723640980069,42.56,149.86,149.77,6.6141]
[1723640980272,42.56,149.86,149.78,1.33502943]
[1723640980482,49.2317,149.89,149.77,6.6141]
[1723640980706,42.56,149.89,149.78,65.12549]
[1723640980882,42.56,149.92,149.79,0.25098]
[1723640981201,42.56,149.95,149.82,22.8837]
[1723640981388,42.56,149.89,149.82,22.8837]
[1723640981705,42.56,149.86,149.82,6.2267]
[1723640981881,42.56,149.86,149.78,6.2267]
[1723640982773,30.2531738,149.95,149.78,6.2267]
[1723640982994,42.56,149.88,149.79,45.0]
[1723640983611,42.56,149.91,149.8,20.0]
[1723640983907,42.56,149.88,149.8,20.0]
[1723640984069,49.2308,149.91,149.8,20.0]
[1723640984274,42.56,149.91,149.81,45.0]
[1723640984473,42.56,149.91,149.81,44.04070297]
[1723640984898,6.6712,149.9,149.81,44.04070297]
[1723640985078,49.2306,149.91,149.8,20.0]
[1723640985284,49.2306,149.91,149.79,20.25098]
[1723640985603,42.56,149.91,149.79,20.25098]
[1723640985975,42.56,149.91,149.8,0.25098]
[1723640986883,42.56,149.91,149.8,45.25098]
[1723640987199,42.56,149.91,149.81,20.0]
[1723640987379,42.56,149.91,149.82,45.0]
[1723640987577,42.56,149.93,149.83,20.0]
[1723640988179,42.56,149.89,149.8,0.25098]
[1723640988379,42.56,149.87,149.79,20.0]
[1723640989182,42.56,149.85,149.79,20.0]
[1723640989691,0.12549,149.9,149.79,20.0]
[1723640989692,42.56,149.87,149.79,20.0]
[1723640991009,42.56,149.87,149.78,6.2267]
[1723640991205,42.56,149.84,149.78,6.2267]
[1723640991411,42.56,149.81,149.73,6.0079]
[1723640991794,42.56,149.84,149.73,6.0079]
[1723640992724,49.234,149.84,149.73,6.0079]
[1723640993627,49.51366431,149.84,149.73,6.0079]
[1723640993819,0.25098,149.83,149.73,6.0079]
[1723640994320,0.25098,149.83,149.74,20.0]
[1723640995195,42.56,149.77,149.73,6.0079]
[1723640995893,42.56,149.77,149.69,6.3019]
[1723640996308,42.56,149.81,149.69,6.3019]
[1723640996602,0.12549,149.83,149.7,65.0]
[1723640996801,42.56,149.82,149.7,65.25098]
[1723640997003,42.56,149.8,149.7,65.0]
[1723640997315,42.56,149.78,149.7,20.0]
[1723640998000,42.56,149.76,149.69,6.3019]
[1723640998219,42.56,149.7,149.58,2.68712285]
[1723640998403,42.56,149.68,149.58,2.68712285]
[1723640998728,42.56,149.68,149.56,6.2176]
[1723640999297,42.56,149.68,149.56,48.7776]
[1723640999532,42.56,149.73,149.58,42.56]
[1723640999838,308.1376,149.76,149.59,22.7856]
[1723641000035,6.80349,149.75,149.6,42.56]
[1723641000219,42.56,149.74,149.59,22.7856]
[1723641000532,42.56,149.74,149.61,42.56]
[1723641000833,42.56,149.74,149.62,65.37647]
[1723641001047,49.2382,149.74,149.62,65.37647]
[1723641001204,42.56,149.71,149.59,22.7856]
[1723641002023,42.56,149.74,149.59,65.3456]
[1723641002200,6.6772,149.77,149.62,42.56]
[1723641002201,42.56,149.77,149.62,42.56]
[1723641002404,42.56,149.77,149.64,42.56]
[1723641002937,42.56,149.77,149.6,42.56]
[1723641002938,42.56,149.79,149.67,0.12549]
[1723641003103,42.56,149.79,149.67,45.50196]
[1723641003306,42.56,149.83,149.7,16.1743]
[1723641003550,23.31850641,149.84,149.71,65.0]
[1723641003551,42.56,149.81,149.71,65.0]
[1723641003704,42.56,149.81,149.71,45.0]
[1723641004101,42.56,149.79,149.68,20.0]
[1723641004518,6.94832119,149.8,149.69,0.50196]
[1723641005443,42.56,149.83,149.69,0.50196]
[1723641005621,42.56,149.83,149.69,45.50196]
[1723641005820,56.18106063,149.83,149.7,20.0]
[1723641006117,56.18106063,149.83,149.71,45.12549]
[1723641006118,49.50676063,149.83,149.71,45.12549]
[1723641006442,42.56,149.81,149.72,20.0]
[1723641007041,6.94676063,149.83,149.74,6.1833]
[1723641007339,0.09463896,149.89,149.77,15.6657]
[1723641007504,0.09463896,149.89,149.78,45.0]
[1723641007703,7.03681234,149.89,149.79,21.3347881]
[1723641008027,7.03681234,149.89,149.8,1.33474105]
[1723641008233,0.09463896,149.89,149.81,0.25098]
[1723641008435,0.09463896,149.89,149.82,6.1309]
[1723641009303,0.09463896,149.89,149.83,65.25098]
[1723641009508,0.09463896,149.89,149.84,44.14512256]
[1723641009705,0.09463896,149.89,149.86,0.12549]
[1723641009940,42.56,149.98,149.86,0.12549]
[1723641010105,6.93849238,149.98,149.86,0.25098]
[1723641010410,42.56,150.02,149.88,42.68549]
[1723641010611,42.56,150.02,149.9,0.12549]
[1723641010805,49.2262,150.02,149.9,20.12549]
[1723641011013,6.93728753,150.01,149.9,26.5601]
[1723641011208,42.56,150.02,149.91,45.37647]
[1723641011532,42.56,149.99,149.91,45.0]
[1723641011834,42.56,149.99,149.9,26.5601]
[1723641012037,51.568,149.97,149.83,6.15999]
[1723641012241,44.9,149.97,149.85,0.12549]
[1723641012740,6.6668,150.0,149.85,0.12549]
[1723641012915,0.12549,150.0,149.85,0.12549]
[1723641013122,44.9,149.95,149.84,65.12549]
[1723641013845,6.6649,150.04,149.9,44.9]
[1723641014048,6.6649,150.04,149.91,51.15999]
[1723641014222,6.9363621,150.03,149.92,20.0]
[1723641014410,6.9363621,150.03,149.93,45.12549]
[1723641014614,6.6644,150.05,149.94,20.12549]
[1723641014811,6.665,150.04,149.95,45.0]
[1723641015018,51.5644,150.05,149.95,45.0]
[1723641015245,44.9,150.05,149.95,45.0]
[1723641015429,44.9,150.05,149.96,0.12549]
[1723641015742,44.9,150.05,149.96,0.25098]
[1723641015920,0.8419865,150.06,149.96,0.25098]
[1723641016349,7.77656543,150.06,149.96,0.25098]
[1723641016543,0.8419865,150.06,149.97,0.12549]
[1723641016734,0.8419865,150.06,149.97,45.37647]
[1723641016935,0.8419865,150.06,149.96,65.15098]
[1723641016936,6.6649,150.04,149.96,20.0]
[1723641017136,44.9,150.05,149.96,20.0]
[1723641017344,0.8419865,150.06,149.97,45.25098]
[1723641017538,0.8419865,150.06,149.98,20.0]
[1723641017735,0.8419865,150.06,149.99,0.12549]
[1723641017948,0.8419865,150.06,149.99,45.25098]
[1723641018128,0.8419865,150.06,149.98,20.0]
[1723641018320,0.8419865,150.06,149.93,20.0]
[1723641019142,0.8419865,150.06,149.93,21.33321319]
[1723641019456,0.8419865,150.06,149.95,44.9]
[1723641019626,0.8419865,150.06,149.97,6.4938]
[1723641019829,0.8419865,150.06,149.98,66.23276871]
[1723641020036,0.8419865,150.06,150.0,0.12549]
[1723641020242,0.8419865,150.06,150.0,1.83448602]
[1723641020446,0.8419865,150.06,150.02,0.12549]
[1723641020647,0.8419865,150.06,150.02,65.50196]
[1723641020857,22.5064,150.17,150.04,0.12549]
[1723641021065,44.9,150.18,150.05,6.4938]
[1723641021066,51.83622816,150.18,150.05,6.4938]
[1723641021356,51.83622816,150.18,150.06,66.8337121]
[1723641021539,6.6596,150.16,150.06,65.50196]
[1723641021735,6.6596,150.16,150.06,65.12549]
[1723641021736,44.9,150.15,150.06,65.12549]
[1723641021942,51.83622816,150.18,150.07,0.12549]
[1723641022138,6.6591,150.17,150.06,20.0]
[1723641022844,6.6591,150.17,150.07,0.12549]
[1723641023037,13.59492816,150.18,150.07,0.12549]
[1723641023359,6.6578,150.2,150.07,0.25098]
[1723641023663,6.93359431,150.2,150.08,0.37647]
[1723641023869,6.93359431,150.2,150.09,0.25098]
[1723641024061,6.93359431,150.2,150.1,0.37647]
[1723641024364,6.93359431,150.2,150.11,1.37867644]
[1723641024657,0.8516359,150.21,150.12,0.12549]
[1723641024956,0.8516359,150.21,150.14,0.12549]
[1723641025258,0.8516359,150.21,150.14,65.50196]
[1723641025862,0.8516359,150.21,150.14,65.25098]
[1723641026754,0.8516359,150.21,150.15,0.12549]
[1723641026952,0.8516359,150.21,150.15,0.37647]
[1723641027263,0.8516359,150.21,150.16,0.12549]
[1723641027467,0.8516359,150.21,150.15,0.25098]
[1723641027681,0.8516359,150.21,150.16,0.25098]
[1723641027874,0.8516359,150.21,150.17,0.12549]
[1723641028174,0.8516359,150.21,150.15,0.12549]
[1723641028553,0.8516359,150.21,150.14,65.25098]
[1723641028976,0.8516359,150.21,150.14,20.0]
[1723641030152,0.8516359,150.21,150.15,0.37647]
[1723641030372,0.8516359,150.21,150.16,0.12549]
[1723641030877,0.8516359,150.21,150.17,0.12549]
[1723641031048,0.8516359,150.21,150.17,45.37647]
[1723641031243,0.8516359,150.21,150.18,20.12549]
[1723641031452,0.8516359,150.21,150.19,45.0]
[1723641032560,0.8516359,150.21,150.2,20.25098]
[1723641032755,68.0349,150.32,150.2,65.37647]
[1723641032959,68.0349,150.32,150.21,45.0]
[1723641032960,6.93090119,150.31,150.21,45.0]
[1723641033156,6.6543,150.28,150.22,20.0]
[1723641033554,6.6546,150.27,150.22,20.0]
[1723641033751,6.6542,150.28,150.17,0.12549]
[1723641033949,44.9,150.3,150.18,0.12549]
[1723641034171,44.9,150.3,150.18,0.37647]
[1723641034366,44.9,150.3,150.19,0.12549]
[1723641034367,51.5534,150.3,150.19,0.12549]
[1723641034575,51.5534,150.3,150.19,0.37647]
[1723641035470,44.9,150.3,150.19,0.37647]
[1723641035678,0.12549,150.26,150.19,20.0]
[1723641035977,0.12549,150.26,150.14,0.12549]
[1723641036851,0.12549,150.26,150.13,6.6238]
[1723641036852,42.6,150.21,150.13,6.6238]
[1723641037267,0.12549,150.2,150.13,6.6238]
[1723641037450,6.78329,150.2,150.13,6.6238]
[1723641037650,42.6,150.21,150.13,6.6238]
[1723641038063,0.12549,150.2,150.13,6.6238]
[1723641038603,49.2574,150.21,150.13,6.6238]
[1723641038786,42.6,150.25,150.13,6.6238]
[1723641038983,388.3546,150.28,150.14,42.6]
[1723641039283,55.73470119,150.31,150.16,42.6]
[1723641039573,55.73470119,150.31,150.17,0.12549]
[1723641039782,42.6,150.29,150.17,45.50196]
[1723641040089,6.6547,150.27,150.17,45.50196]
[1723641040383,6.6558,150.25,150.17,45.37647]
[1723641040674,6.6558,150.25,150.17,45.25098]
[1723641040873,0.12549,150.25,150.14,0.12549]
[1723641041089,51.11,150.26,150.14,20.37647]
[1723641041387,51.11,150.29,150.14,71.48647]
[1723641041550,13.58390119,150.31,150.17,51.11]
[1723641041875,6.93090119,150.31,150.18,20.37647]
[1723641042078,51.11,150.32,150.19,6.3939]
[1723641042254,6.6516,150.34,150.21,15.9836]
[1723641042457,438.995,150.35,150.2,20.50196]
[1723641042458,6.92975378,150.31,150.2,65.25098]
[1723641042684,6.185,150.35,150.2,65.25098]
[1723641042685,51.11,150.29,150.2,65.0]
[1723641042884,51.11,150.26,150.16,15.9836]
[1723641043191,51.11,150.26,150.15,6.3939]
[1723641043362,51.11,150.23,150.15,6.3939]
[1723641043690,51.11,150.2,150.11,22.3775]
[1723641044293,0.12549,150.19,150.11,6.3939]
[1723641044876,6.78379,150.19,150.11,6.3939]
[1723641045078,0.12549,150.19,150.11,6.3939]
[1723641045392,57.7677,150.2,150.11,6.3939]
[1723641045573,6.6577,150.2,150.11,6.3939]
[1723641046110,6.78319,150.21,150.11,6.3939]
[1723641046278,0.12549,150.21,150.11,6.3939]
[1723641046465,6.90798,150.22,150.12,20.0]
[1723641046773,0.12549,150.22,150.13,1.45690943]
[1723641046977,6.656,150.24,150.14,0.12549]
[1723641047162,6.6565,150.23,150.13,0.25098]
[1723641047489,432.81,150.26,150.14,0.25098]
[1723641047689,6.6543,150.28,150.16,0.12549]
[1723641047895,51.11,150.29,150.16,66.58220448]
[1723641048078,51.11,150.29,150.17,0.25098]
[1723641048266,51.11,150.29,150.18,0.12549]
[1723641048467,51.11,150.26,150.17,0.12549]
[1723641048771,6.656,150.24,150.16,65.12549]
[1723641049273,57.7654,150.26,150.17,0.12549]
[1723641049470,51.11,150.26,150.17,0.12549]
[1723641049689,51.11,150.26,150.17,0.37647]
[1723641050093,51.11,150.29,150.17,0.37647]
[1723641050286,51.11,150.26,150.17,0.37647]
[1723641050602,51.11,150.26,150.17,0.25098]
[1723641051102,51.11,150.29,150.17,0.25098]
[1723641051399,6.6547,150.27,150.18,0.12549]
[1723641051610,51.11,150.29,150.18,0.12549]
[1723641051611,6.6555,150.25,150.18,0.12549]
[1723641051790,6.6551,150.26,150.17,0.25098]
[1723641053302,0.12549,150.28,150.18,0.12549]
[1723641053599,6.6542,150.28,150.18,6.1549]
[1723641053815,6.6542,150.28,150.19,45.0]
[1723641054100,85.47484686,150.32,150.19,45.0]
[1723641054289,6.6547,150.27,150.19,45.0]
[1723641054682,57.7642,150.28,150.19,45.0]
[1723641054892,6.6547,150.27,150.19,45.0]
[1723641055301,57.7643,150.28,150.19,45.0]
[1723641055691,57.7643,150.28,150.2,0.25098]
[1723641056399,0.12549,150.31,150.2,1.5742508]
[1723641056603,0.25098,150.31,150.2,0.25098]
[1723641056787,6.6551,150.26,150.19,45.0]
[1723641056988,6.6577,150.21,150.14,6.2267]
[1723641057606,51.11,150.22,150.14,6.2267]
[1723641057913,6.78189,150.23,150.14,6.2267]
[1723641058118,6.6569,150.22,150.14,6.2267]
[1723641058491,51.11,150.22,150.14,6.2267]
[1723641058714,6.6585,150.19,150.14,6.2267]
[1723641059015,6.6587,150.18,150.1,22.6887]
[1723641059223,6.66,150.15,150.1,6.2962]
[1723641059396,57.7691,150.18,150.1,6.2962]
[1723641060205,6.6591,150.17,150.1,6.2962]
[1723641060513,6.6597,150.16,150.1,6.2962]
[1723641060727,51.11,150.18,150.1,6.2962]
[1723641061013,6.6579,150.2,150.1,6.2962]
[1723641061222,0.12549,150.2,150.1,6.2962]
[1723641061410,6.6595,150.17,150.1,6.2962]
[1723641061607,57.7687,150.18,150.1,6.2962]
[1723641062313,6.6607,150.14,150.06,6.2149]
[1723641062503,6.66,150.15,150.06,6.2149]
[1723641062703,6.6586,150.19,150.06,6.2149]
[1723641063095,6.6586,150.19,150.06,57.3249]
[1723641063298,0.12549,150.2,150.06,57.3249]
[1723641063804,0.12549,150.2,150.08,0.12549]
[1723641064007,16.6239,150.26,150.1,6.34139]
[1723641064315,16.6239,150.26,150.13,0.12549]
[1723641064316,18.652729,150.26,150.13,0.12549]
[1723641064495,6.6552,150.26,150.15,0.12549]
[1723641064695,6.6552,150.26,150.15,21.83304326]
[1723641064928,51.11,150.27,150.17,0.12549]
[1723641065101,300.76651023,150.3,150.18,6.2159]
[1723641065102,67.3302,150.3,150.18,6.2159]
[1723641065299,51.11,150.3,150.2,0.12549]
[1723641065498,51.11,150.3,150.19,45.37647]
[1723641065709,6.6546,150.28,150.19,45.37647]
[1723641066198,6.6551,150.26,150.19,45.37647]
[1723641066397,6.6546,150.28,150.19,45.37647]
[1723641066701,11.99523136,150.29,150.19,45.37647]
[1723641066921,11.99523136,150.29,150.2,0.12549]
[1723641067092,51.11,150.3,150.2,20.12549]
[1723641067295,18.64850823,150.29,150.21,45.37647]
[1723641067505,51.11,150.3,150.21,45.37647]
[1723641067724,11.99477263,150.29,150.21,45.37647]
[1723641067905,6.6542,150.28,150.21,45.37647]
[1723641068107,11.99477263,150.29,150.21,45.37647]
[1723641068316,51.11,150.3,150.21,45.37647]
[1723641068521,11.99485218,150.29,150.21,45.37647]
[1723641068900,11.99485218,150.29,150.22,0.12549]
[1723641069094,58.6127359,150.36,150.24,0.12549]
[1723641069296,11.99156673,150.35,150.26,0.12549]
[1723641069514,11.99156673,150.35,150.26,45.37647]
[1723641069712,11.99156673,150.35,150.26,45.25098]
[1723641070104,6.6529,150.31,150.26,45.0]
[1723641070317,11.99156673,150.32,150.26,45.0]
[1723641070621,6.653,150.31,150.26,45.0]
[1723641070831,51.11,150.3,150.2,6.3384]
[1723641071006,6.6538,150.29,150.2,6.3384]
[1723641071323,6.6546,150.27,150.2,6.3384]
[1723641071519,6.6551,150.26,150.2,6.3384]
[1723641071697,6.656,150.24,150.2,6.3384]
[1723641071897,6.6556,150.25,150.2,6.3384]
[1723641072125,6.6551,150.26,150.2,6.3384]
[1723641072325,51.11,150.27,150.2,6.3384]
[1723641072326,57.7647,150.27,150.2,6.3384]
[1723641072706,51.11,150.27,150.2,6.3384]
[1723641072911,0.12549,150.23,150.12,2.65476951]
[1723641073225,0.12549,150.23,150.03,6.2009]
[1723641073226,51.11,150.15,150.03,6.2009]
[1723641073401,51.23549,150.16,149.99,15.4786]
[1723641073402,51.11,150.09,149.99,15.4786]
[1723641073604,57.7753,150.03,149.97,6.3079]
[1723641073800,57.7753,150.03,149.92,16.638]
[1723641074123,57.7753,150.03,149.91,6.3079]
[1723641074124,6.6676,149.98,149.91,6.3079]
[1723641074427,6.6689,149.95,149.85,16.638]
[1723641074725,0.12549,150.04,149.85,16.638]
[1723641074726,51.11,150.0,149.87,20.0]
[1723641074928,51.11,150.0,149.85,16.638]
[1723641074929,51.11,150.06,149.89,71.11]
[1723641075132,51.11,150.06,149.92,20.0]
[1723641075303,51.11,150.06,149.92,51.11]
[1723641075818,24.0617,150.19,149.98,51.11]
[1723641076156,6.6631,150.08,149.97,6.172]
[1723641076423,26.93121844,150.12,149.98,20.12549]
[1723641076424,51.11,150.1,149.98,20.12549]
[1723641076728,51.11,150.1,149.99,0.25098]
[1723641076898,6.6626,150.09,150.0,0.25098]
[1723641077099,16.6526,150.13,150.0,0.25098]
[1723641077100,51.11,150.13,150.02,0.12549]
[1723641077410,51.11,150.1,150.02,0.12549]
[1723641077600,6.663,150.09,150.02,0.12549]
[1723641077803,57.7737,150.07,150.0,0.12549]
[1723641078002,57.7737,150.07,149.99,0.25098]
[1723641078303,51.11,150.07,149.99,0.25098]
[1723641079111,51.11,150.07,150.0,0.12549]
[1723641079309,6.93100814,150.13,150.0,0.12549]
[1723641079507,6.6602,150.15,150.01,51.11]
[1723641079703,6.6602,150.15,150.02,20.50196]
[1723641079704,6.66,150.15,150.02,20.50196]
[1723641080332,51.11,150.13,150.02,20.50196]
[1723641080636,6.6627,150.09,150.0,20.0]
[1723641080839,57.7722,150.1,150.0,20.0]
[1723641081144,51.11,150.16,150.0,20.48238616]
[1723641081442,51.11,150.16,150.01,71.59253162]
[1723641081735,57.7696,150.16,150.03,0.12549]
[1723641081936,57.7696,150.16,150.03,0.37647]
[1723641082138,57.7696,150.16,150.04,0.12549]
[1723641082446,51.11,150.13,150.05,0.12549]
[1723641082609,6.6618,150.11,150.03,0.12549]
[1723641082808,6.6613,150.12,150.03,0.12549]
[1723641083016,51.11,150.13,150.03,0.12549]
[1723641083325,6.6605,150.14,150.03,0.12549]
[1723641084039,6.6616,150.12,150.03,0.12549]
[1723641084337,6.6618,150.11,150.03,0.25098]
[1723641084639,33.1407,150.21,150.04,51.36098]
[1723641084828,57.7678,150.2,150.06,0.12549]
[1723641085032,381.7,150.23,150.06,1.70827828]
[1723641085218,6.6581,150.2,150.07,0.12549]
[1723641085546,6.6582,150.19,150.07,0.12549]
[1723641085744,51.11,150.21,150.08,0.12549]
[1723641086040,51.11,150.24,150.1,0.12549]
[1723641086238,51.11,150.24,150.1,20.50196]
[1723641086412,58.04271312,150.24,150.1,20.50196]
[1723641086613,58.04271312,150.24,150.1,21.83356078]
[1723641086807,6.6565,150.23,150.12,0.12549]
[1723641087043,57.7661,150.24,150.12,1.83354227]
[1723641087441,51.11,150.24,150.12,0.50196]
[1723641087643,6.6573,150.22,150.12,0.50196]
[1723641087947,6.6573,150.21,150.12,0.50196]
[1723641088154,51.11,150.24,150.12,0.50196]
[1723641088155,6.6568,150.23,150.12,0.50196]
[1723641088335,51.11,150.24,150.12,0.50196]
[1723641088657,57.766,150.24,150.12,20.50196]
[1723641089055,51.11,150.24,150.12,20.50196]
[1723641089259,51.11,150.27,150.12,20.50196]
[1723641089634,6.656,150.24,150.12,20.50196]
[1723641090637,6.6555,150.25,150.12,20.50196]
[1723641090838,6.6552,150.26,150.12,20.50196]
[1723641091255,6.6556,150.25,150.12,20.50196]
[1723641091460,6.6556,150.25,150.14,0.12549]
[1723641091658,6.656,150.24,150.14,0.50196]
[1723641091841,51.11,150.24,150.12,20.0]
[1723641092044,57.7674,150.21,150.12,20.0]
[1723641092239,51.11,150.24,150.12,20.0]
[1723641092562,6.6551,150.26,150.12,40.0]
[1723641092735,6.6563,150.24,150.12,20.0]
[1723641093355,6.6556,150.25,150.13,0.25098]